bitfinex/quotes_ETHUSD_20251107
["timestamp","ask_amount","ask_price","bid_price","bid_amount"]
[1762483547782,1.259712,3329.2,3329.1,0.001]
[1762483548086,4.72763661,3329.2,3329.1,0.001]
[1762483548285,5.19513661,3329.2,3329.1,0.001]
[1762483550243,1.723912,3329.2,3329.1,0.001]
[1762483550445,5.22061656,3329.2,3329.1,0.001]
[1762483551014,5.19513661,3329.2,3329.1,0.001]
[1762483551243,2.191412,3329.2,3329.1,0.001]
[1762483551445,5.19513661,3329.2,3329.1,0.001]
[1762483552541,1.259712,3329.2,3329.1,0.001]
[1762483552745,4.26343661,3329.2,3329.1,0.001]
[1762483553168,1.259712,3329.2,3329.1,0.001]
[1762483553645,4.26343661,3329.2,3329.1,0.001]
[1762483553809,1.259712,3329.2,3329.1,0.001]
[1762483554014,4.26343661,3329.2,3329.1,0.001]
[1762483554209,1.259712,3329.2,3329.1,0.3012]
[1762483554411,1.259712,3329.2,3329.1,0.5087]
[1762483554618,1.259712,3329.2,3329.1,0.6583]
[1762483555033,1.259712,3329.2,3329.1,1.0154]
[1762483555207,1.259712,3329.2,3329.1,0.6583]
[1762483555545,4.26343661,3329.2,3329.1,0.1506]
[1762483555717,4.72763661,3329.2,3329.1,0.1506]
[1762483555907,5.19513661,3329.2,3329.1,0.1506]
[1762483556108,5.19513661,3329.2,3329.1,0.001]
[1762483556109,5.22061656,3329.2,3329.1,0.001]
[1762483556320,4.26379755,3328.8,3328.7,0.001]
[1762483556543,4.8630775,3328.8,3328.7,0.001]
[1762483556745,5.3305775,3328.8,3328.7,0.001]
[1762483557559,5.30509755,3328.8,3328.7,0.001]
[1762483559617,4.7280878,3328.7,3328.4,0.001]
[1762483559817,4.26424885,3328.3,3326.7,3.79]
[1762483560021,10.07984971,3328.3,3327.6,0.1496]
[1762483560218,4.26451969,3328.0,3326.0,0.3581]
[1762483560537,5.34563912,3328.2,3326.0,0.3581]
[1762483560538,3.00516889,3327.6,3326.0,0.3581]
[1762483560731,3.00516889,3327.6,3325.9,0.1506]
[1762483560732,10.0550018,3327.6,3326.9,0.1496]
[1762483560932,10.5225018,3327.6,3326.9,0.1496]
[1762483562663,10.6721018,3327.6,3326.9,0.1496]
[1762483563031,9.5908018,3327.6,3327.1,0.1037]
[1762483563249,9.5908018,3327.6,3327.3,0.1496]
[1762483563557,10.0550018,3327.6,3327.3,0.1496]
[1762483563771,10.5225018,3327.6,3326.3,3.41176943]
[1762483563973,10.5225018,3327.6,3326.5,3.00609362]
[1762483564377,10.5225018,3327.6,3326.3,0.405504]
[1762483565072,9.5908018,3327.6,3327.1,0.1037]
[1762483565841,8.33025735,3328.6,3327.5,0.7172]
[1762483566062,3.00485141,3328.0,3327.7,0.3581]
[1762483566259,8.79775735,3328.6,3327.5,0.001]
[1762483566260,3.00516889,3327.6,3327.5,0.001]
[1762483566757,5.22206084,3327.6,3327.5,0.001]
[1762483566954,5.19658089,3327.6,3327.5,0.001]
[1762483567161,3.00543984,3327.3,3327.2,3.79]
[1762483567357,10.48918918,3327.3,3327.2,3.79]
[1762483567745,10.95668918,3327.3,3327.2,3.79]
[1762483569081,10.48918918,3327.3,3327.2,3.79]
[1762483569389,10.95668918,3327.3,3327.2,3.79]
[1762483569546,4.26524217,3327.2,3327.1,0.001]
[1762483569746,5.19694217,3327.2,3327.1,0.001]
[1762483570556,3.00607226,3326.6,3326.5,0.001]
[1762483570880,10.5235216,3326.6,3326.5,0.001]
[1762483571091,1.259712,3326.6,3326.5,0.001]
[1762483571273,3.61340211,3328.9,3326.5,0.001]
[1762483571274,5.75983734,3327.5,3326.5,0.7172]
[1762483571474,3.00554071,3327.2,3326.8,0.3581]
[1762483571881,5.75983734,3327.5,3327.1,0.4618]
[1762483572194,1.259712,3327.3,3327.1,0.4618]
[1762483573402,3.00532733,3327.5,3327.2,0.7162]
[1762483573564,1.448812,3327.9,3326.5,0.001]
[1762483573765,10.02480854,3327.5,3327.4,0.1496]
[1762483573954,3.00580248,3326.9,3326.5,0.001]
[1762483574294,1.259712,3327.0,3326.5,0.001]
[1762483574494,10.02553124,3326.7,3326.6,0.1496]
[1762483575196,7.01954934,3326.7,3326.6,0.1496]
[1762483575557,1.259712,3326.7,3326.6,0.1496]
[1762483575884,4.2656939,3326.7,3326.6,0.1496]
[1762483576254,1.259712,3326.7,3326.6,0.5077]
[1762483576666,4.2656939,3326.7,3326.6,0.5077]
[1762483577090,1.259712,3326.7,3326.6,0.5077]
[1762483577666,1.259712,3326.7,3326.6,3.87187226]
[1762483577968,5.94893734,3327.9,3326.7,3.00597117]
[1762483577969,1.259712,3327.3,3326.7,3.00597117]
[1762483578170,3.00544783,3327.3,3326.7,3.36407117]
[1762483578554,6.09853734,3327.9,3327.2,0.1496]
[1762483578786,3.00498828,3327.8,3327.2,0.2533]
[1762483578954,3.00498828,3327.8,3327.2,0.1037]
[1762483578955,1.259712,3327.8,3327.2,0.1037]
[1762483579291,4.26488089,3327.6,3327.5,0.1496]
[1762483580257,1.259712,3327.6,3327.5,0.1496]
[1762483580785,4.26488089,3327.6,3327.5,0.1496]
[1762483583396,4.26488089,3327.6,3326.9,0.1496]
[1762483583397,1.259712,3327.5,3326.9,0.1496]
[1762483583577,1.259712,3327.0,3326.9,0.1496]
[1762483583773,4.26542285,3327.0,3326.9,0.1496]
[1762483583990,0.1496,3327.5,3326.9,0.1496]
[1762483584196,3.00571085,3327.0,3326.9,0.1496]
[1762483584515,1.259712,3326.7,3326.5,0.3591]
[1762483584719,3.00607226,3326.6,3326.5,0.001]
[1762483585063,3.00607226,3326.6,3326.5,0.1506]
[1762483585264,4.26578426,3326.6,3326.5,0.1506]
[1762483585906,1.259712,3326.6,3326.5,0.5087]
[1762483586276,1.259712,3327.5,3326.5,1.2183025]
[1762483586470,3.00562564,3327.1,3326.6,0.3581]
[1762483586876,3.00562564,3327.1,3327.0,0.3581]
[1762483586877,4.26533764,3327.1,3327.0,0.3581]
[1762483587792,4.26551319,3326.9,3326.8,0.001]
[1762483587965,4.95251319,3326.9,3326.8,0.001]
[1762483588166,5.44561319,3326.9,3326.8,0.001]
[1762483588969,4.95251319,3326.9,3326.8,0.001]
[1762483589506,1.259712,3326.9,3326.8,0.001]
[1762483589807,0.1891,3327.9,3326.8,0.7172]
[1762483590009,1.259712,3327.4,3327.0,0.3581]
[1762483590311,0.1891,3327.9,3327.1,0.0300562]
[1762483590510,0.002,3328.0,3327.5,0.4618]
[1762483590713,3.006826,3328.0,3327.5,0.4618]
[1762483590913,3.006826,3328.0,3327.5,0.8199]
[1762483590914,3.00489914,3327.9,3327.5,0.8199]
[1762483591069,1.259712,3327.8,3327.5,0.8199]
[1762483591972,0.002,3328.0,3327.5,0.4618]
[1762483592185,0.1891,3327.9,3327.1,0.1037]
[1762483592385,3.00535048,3327.4,3327.1,0.49307]
[1762483592574,1.259712,3327.4,3327.1,0.49307]
[1762483593211,1.259712,3327.5,3327.1,0.49307]
[1762483593409,3.00534952,3327.4,3327.1,0.1037]
[1762483593710,1.261712,3328.0,3327.4,0.3581]
[1762483593904,1.261712,3328.0,3327.5,0.3581]
[1762483594106,3.00491171,3327.9,3327.5,0.3581]
[1762483594310,3.00499823,3327.8,3327.5,0.3581]
[1762483594510,1.261712,3327.6,3327.5,0.3581]
[1762483595274,0.002,3327.6,3327.5,0.7162]
[1762483595474,0.002,3327.6,3327.5,0.3581]
[1762483595899,0.002,3327.6,3327.5,1.0]
[1762483595900,1.261712,3327.6,3327.5,1.0]
[1762483596200,0.002,3327.6,3327.5,5.1481]
[1762483596407,0.002,3327.6,3327.5,5.5062]
[1762483596602,0.002,3327.6,3327.5,5.1481]
[1762483596778,0.002,3327.6,3327.5,5.2977]
[1762483597102,1.261712,3327.6,3327.5,5.2977]
[1762483597307,1.261712,3327.6,3327.5,4.9396]
[1762483597510,3.00716889,3327.6,3327.5,4.9396]
[1762483597683,0.002,3327.6,3327.5,4.9396]
[1762483598521,0.002,3327.6,3327.5,9.0054192]
[1762483599018,0.002,3327.6,3327.5,6.00016]
[1762483601178,0.002,3327.6,3327.5,9.4109232]
[1762483601717,0.002,3328.0,3327.7,3.788]
[1762483601880,3.00360327,3329.4,3328.3,0.405504]
[1762483602081,3.19384736,3329.7,3328.3,0.405504]
[1762483602082,0.1905,3329.7,3328.8,3.00406514]
[1762483602301,5.94893734,3330.0,3328.9,3.00396232]
[1762483602514,3.00323473,3329.8,3329.0,3.00389142]
[1762483602677,3.00309318,3329.9,3329.1,3.03383537]
[1762483602885,0.1891,3330.0,3328.6,4.50786059]
[1762483603074,3.00328114,3329.7,3328.9,0.405504]
[1762483603277,3.00336704,3329.6,3328.9,0.405504]
[1762483603478,3.00336704,3329.6,3328.9,0.763604]
[1762483603808,3.00345596,3329.5,3328.9,3.76759638]
[1762483603973,3.0037765,3329.2,3328.6,0.405504]
[1762483604173,1.259712,3329.5,3328.6,0.405504]
[1762483604417,4.26318115,3329.5,3328.6,3.40970216]
[1762483604623,3.00365511,3329.3,3328.6,4.13545308]
[1762483605121,4.26318115,3329.5,3328.7,3.36219932]
[1762483605122,3.00354788,3329.4,3328.7,3.36219932]
[1762483605531,3.00388926,3329.1,3328.6,1.13125492]
[1762483605886,1.759512,3329.7,3328.5,0.405504]
[1762483606090,3.00365628,3329.3,3328.5,0.405504]
[1762483606291,0.4998,3329.7,3328.8,3.00400246]
[1762483606488,3.00353029,3329.5,3328.8,3.00400246]
[1762483606889,1.259712,3329.9,3329.4,0.3581]
[1762483607090,1.259712,3329.6,3329.4,0.3581]
[1762483608030,3.00337461,3329.6,3329.4,0.3581]
[1762483608217,3.00339956,3329.6,3329.0,0.405504]
[1762483608418,3.00356596,3329.4,3328.5,4.1461]
[1762483608591,3.00356596,3329.4,3328.8,0.405504]
[1762483608790,1.259712,3329.4,3329.3,0.1496]
[1762483609013,1.259712,3329.8,3329.3,0.5077]
[1762483609338,0.1905,3330.2,3329.3,0.5077]
[1762483609488,0.1905,3330.2,3329.3,0.3581]
[1762483609689,4.45303465,3330.2,3330.1,0.1496]
[1762483610137,5.41503465,3330.2,3330.1,0.1496]
[1762483611445,0.002,3330.6,3330.1,3.51159708]
[1762483611609,0.002,3330.6,3330.1,0.5087]
[1762483611938,1.261712,3330.6,3330.1,0.5087]
[1762483612101,3.00448342,3330.6,3330.1,0.5087]
[1762483612308,3.00448342,3330.6,3330.1,0.8668]
[1762483612737,3.0025623,3330.5,3330.1,0.5087]
[1762483613132,0.002,3330.6,3330.1,0.5087]
[1762483613338,0.002,3330.6,3330.5,0.3581]
[1762483613759,0.002,3330.6,3330.5,4.12425616]
[1762483613933,0.002,3330.6,3330.5,4.55033808]
[1762483614315,0.002,3331.0,3330.9,3.00219159]
[1762483614562,0.002,3331.0,3330.9,3.71839159]
[1762483614720,0.002,3331.0,3330.9,4.46426014]
[1762483616213,0.002,3331.0,3330.9,4.86976414]
[1762483617316,0.002,3331.0,3330.9,1.86757255]
[1762483617524,0.002,3331.0,3330.9,4.86976414]
[1762483619048,0.002,3331.0,3330.9,0.3581]
[1762483619424,0.002,3331.0,3330.9,0.38812191]
[1762483620758,0.002,3331.0,3330.1,0.1506]
[1762483620759,0.964,3331.0,3330.1,0.1506]
[1762483621054,0.1905,3330.9,3330.2,3.00276766]
[1762483621233,3.19275924,3330.9,3330.2,3.00276766]
[1762483621552,3.00230193,3330.8,3330.2,3.40832386]
[1762483621957,3.0024219,3330.7,3330.1,0.1506]
[1762483622157,3.50225717,3330.7,3329.7,3.15379784]
[1762483622357,3.00270767,3330.4,3329.8,0.405504]
[1762483622524,3.0028207,3330.3,3329.7,0.1506]
[1762483622719,3.00287834,3330.2,3329.8,0.405504]
[1762483622918,3.00287834,3330.2,3329.7,0.1506]
[1762483623155,3.00276375,3330.3,3330.1,0.1496]
[1762483623660,0.4622,3330.2,3330.1,0.1496]
[1762483623829,0.4998,3330.8,3330.1,0.1496]
[1762483624254,3.00273679,3330.3,3329.8,0.405504]
[1762483624639,3.00273679,3330.3,3330.2,0.1496]
[1762483624972,3.50253679,3330.3,3330.2,0.1496]
[1762483625184,3.96473679,3330.3,3330.2,0.1496]
[1762483625554,0.4998,3330.6,3330.2,0.1496]
[1762483625757,1.259712,3330.6,3330.2,0.1496]
[1762483625953,1.259712,3330.6,3329.8,0.405504]
[1762483626159,4.26217401,3330.6,3330.5,0.1496]
[1762483626546,0.4622,3330.6,3330.5,0.1496]
[1762483626868,3.46466201,3330.6,3330.5,0.1496]
[1762483627368,0.4622,3330.6,3330.5,0.1496]
[1762483627705,1.261712,3331.0,3330.5,0.1496]
[1762483627980,0.002,3331.0,3330.9,0.1496]
[1762483628348,0.4642,3331.0,3330.9,0.1496]
[1762483628680,3.46630147,3331.0,3330.9,0.1496]
[1762483628849,4.72601347,3331.0,3330.9,0.1496]
[1762483629045,2.223712,3331.0,3328.4,3.1081387]
[1762483629243,0.4622,3330.5,3329.1,0.1506]
[1762483629646,3.00260891,3330.5,3329.3,0.405504]
[1762483629954,3.00260891,3330.5,3329.7,3.00319865]
[1762483630159,1.259712,3330.3,3329.8,0.70582386]
[1762483630388,0.1905,3330.9,3329.3,0.405504]
[1762483630389,3.00289543,3330.2,3329.3,0.405504]
[1762483630597,0.02547995,3330.1,3329.1,0.1506]
[1762483630889,0.4611,3330.0,3329.2,0.405504]
[1762483631183,1.259712,3330.2,3329.6,3.00331821]
[1762483631339,1.259712,3329.9,3329.2,0.763604]
[1762483631585,1.259712,3330.0,3329.5,0.405504]
[1762483631783,1.259712,3330.0,3329.5,4.05020687]
[1762483631992,1.259712,3330.1,3329.5,1.0467656]
[1762483632191,1.259712,3330.5,3329.6,0.03003363]
[1762483632397,1.259712,3330.3,3329.4,0.405504]
[1762483632596,1.259712,3330.1,3329.4,0.405504]
[1762483632795,1.259712,3330.1,3329.1,0.1506]
[1762483632796,3.0033781,3329.6,3329.1,0.1506]
[1762483633785,3.18569941,3329.7,3329.1,0.1506]
[1762483634008,0.1824,3329.7,3329.1,0.1506]
[1762483634186,0.6613724,3331.9,3329.6,0.3581]
[1762483634187,0.4611,3330.7,3329.6,0.3581]
[1762483634389,0.4611,3330.7,3329.2,4.17613724]
[1762483634390,0.4611,3330.7,3329.7,0.38813273]
[1762483634596,1.259712,3330.6,3329.8,3.00318204]
[1762483634808,3.00269048,3330.4,3329.8,3.00318204]
[1762483635008,3.00318794,3329.8,3329.4,0.405504]
[1762483635228,3.00334591,3329.7,3329.2,3.788]
[1762483635528,3.00334591,3329.7,3329.3,0.405504]
[1762483635817,3.46431101,3329.8,3329.3,0.405504]
[1762483636021,0.4611,3329.8,3329.2,3.788]
[1762483636343,0.1824,3329.9,3328.5,0.735]
[1762483636344,0.4686,3329.3,3328.5,0.735]
[1762483636497,0.4686,3329.3,3328.7,3.00411136]
[1762483636697,3.47224184,3329.3,3328.7,3.00411136]
[1762483637201,0.4686,3329.3,3328.7,3.00411136]
[1762483637425,0.4686,3329.3,3328.8,3.00407002]
[1762483637588,0.1824,3329.9,3329.2,0.3581]
[1762483637936,1.259712,3329.7,3329.2,3.51240452]
[1762483638310,1.720812,3329.7,3329.2,3.15430452]
[1762483638483,1.259712,3329.8,3329.2,3.7701072]
[1762483638683,3.00321899,3329.8,3329.2,3.7701072]
[1762483638933,3.00318337,3329.8,3329.2,0.76642061]
[1762483639158,4.26289537,3329.8,3329.7,0.1496]
[1762483639336,5.19259537,3329.8,3329.7,0.1496]
[1762483640460,1.259712,3329.8,3329.7,0.1496]
[1762483642339,5.32614131,3330.4,3329.7,0.1496]
[1762483642340,0.4611,3330.6,3329.7,0.3581]
[1762483642511,3.46363491,3330.6,3330.1,0.1496]
[1762483642711,1.259712,3330.3,3329.6,3.788]
[1762483642937,3.51128005,3329.7,3329.4,3.788]
[1762483643124,0.508,3329.7,3329.5,3.788]
[1762483643325,0.508,3329.7,3329.6,0.1496]
[1762483643750,3.00321806,3329.8,3329.6,0.1496]
[1762483643954,3.46339723,3330.8,3329.8,0.405504]
[1762483644162,3.00266778,3330.4,3329.9,0.3581]
[1762483644371,0.1496,3331.1,3329.9,0.3581]
[1762483644659,1.259712,3330.1,3329.8,4.193504]
[1762483644819,0.4611,3330.7,3329.8,4.193504]
[1762483644820,3.00277131,3330.3,3329.9,4.2073504]
[1762483645022,0.1905,3330.9,3330.0,0.405504]
[1762483645258,1.259712,3330.6,3330.2,0.1496]
[1762483645433,3.00264362,3330.4,3329.9,0.405504]
[1762483645636,1.259712,3330.6,3329.9,0.405504]
[1762483645835,1.259712,3330.4,3330.3,0.1496]
[1762483646037,3.00265504,3330.4,3329.9,0.405504]
[1762483646236,3.00265504,3330.4,3330.3,0.1496]
[1762483646433,1.259712,3330.6,3330.3,0.1496]
[1762483646635,3.00255339,3330.5,3330.3,0.1496]
[1762483646938,3.00255339,3330.5,3329.9,4.10756149]
[1762483647163,3.00255339,3330.5,3330.4,0.1496]
[1762483649261,3.47115339,3330.5,3330.4,0.1496]
[1762483649461,5.19196539,3330.5,3330.4,0.1496]
[1762483650028,1.728312,3330.5,3330.4,0.1496]
[1762483650230,4.73086416,3330.5,3330.4,0.1496]
[1762483651498,5.21744411,3330.5,3330.4,0.1496]
[1762483651803,3.00305916,3330.0,3329.4,3.40904439]
[1762483651948,0.4611,3330.4,3329.4,3.34441527]
[1762483652154,1.259712,3329.9,3329.4,3.34441443]
[1762483652377,1.259712,3330.1,3329.4,3.34441443]
[1762483652775,5.32614131,3330.7,3329.6,0.405504]
[1762483652982,1.259712,3330.2,3329.7,3.03322979]
[1762483653181,0.1905,3330.9,3329.9,0.405504]
[1762483653380,3.19274844,3330.9,3330.3,3.00273235]
[1762483653585,1.259712,3330.8,3330.4,0.03002642]
[1762483653780,1.259712,3330.8,3330.2,0.3581]
[1762483653781,1.720812,3330.8,3329.2,0.36135113]
[1762483653993,3.00322026,3329.8,3328.8,0.3591]
[1762483654154,1.259712,3330.6,3328.8,0.001]
[1762483654366,3.00341803,3329.6,3328.9,3.0039068]
[1762483654602,0.1824,3329.7,3329.1,0.46715068]
[1762483654807,3.0034064,3329.6,3329.1,0.1516]
[1762483655091,0.1824,3329.7,3329.1,0.1516]
[1762483655261,0.1824,3329.9,3329.1,0.1516]
[1762483655459,3.00318337,3329.8,3329.1,0.1516]
[1762483655655,0.66897995,3329.9,3329.1,0.1516]
[1762483655860,0.66897995,3329.9,3329.2,3.0036451]
[1762483655861,1.442112,3329.9,3329.2,3.0036451]
[1762483656055,3.0024978,3330.6,3329.2,3.0036451]
[1762483656056,3.00274168,3330.3,3329.5,3.00340018]
[1762483656256,1.259712,3329.9,3329.4,0.405504]
[1762483656561,1.259712,3330.1,3329.4,0.405504]
[1762483656764,1.259712,3330.2,3329.6,3.00328019]
[1762483656983,0.4611,3330.4,3329.3,0.405504]
[1762483657181,0.4611,3330.3,3329.4,3.00354418]
[1762483657395,0.4611,3330.3,3329.5,0.37093935]
[1762483657588,0.4611,3330.3,3329.2,0.405504]
[1762483657777,3.00313583,3329.9,3329.2,3.40915876]
[1762483658186,3.00318479,3329.8,3329.2,3.40915876]
[1762483658694,1.259712,3329.8,3329.3,3.00363003]
[1762483658893,0.1889,3329.9,3329.2,3.40922861]
[1762483659196,0.1889,3329.9,3329.4,0.405504]
[1762483659197,1.259712,3329.8,3329.4,0.405504]
[1762483659386,1.259712,3329.8,3329.3,0.405504]
[1762483659387,3.00318446,3329.8,3329.3,0.405504]
[1762483659590,0.4663,3329.7,3329.3,0.405504]
[1762483659888,1.259712,3330.1,3329.6,3.0033514]
[1762483660084,1.259712,3330.1,3329.6,3.3614514]
[1762483660601,1.259712,3329.8,3329.3,0.405504]
[1762483660771,1.259712,3329.8,3329.2,3.40914867]
[1762483660965,0.1844,3329.9,3329.4,0.405504]
[1762483661292,1.444112,3329.9,3329.4,0.405504]
[1762483661477,1.944012,3329.9,3329.4,3.00352361]
[1762483661994,3.00283251,3330.2,3329.8,0.1496]
[1762483661995,1.259712,3330.2,3329.8,0.1496]
[1762483662194,3.00287901,3330.2,3329.8,0.1496]
[1762483662382,1.259712,3329.8,3329.3,0.405504]
[1762483662589,0.641,3329.9,3329.7,0.1496]
[1762483662789,0.1844,3329.9,3329.7,0.1496]
[1762483662984,0.4999,3330.1,3329.7,3.15286588]
[1762483663172,0.002,3330.6,3330.0,3.36108265]
[1762483663374,3.00454329,3330.6,3330.1,0.03002912]
[1762483663596,1.259712,3330.5,3330.1,0.03002912]
[1762483664104,0.002,3330.6,3330.4,0.1496]
[1762483664305,0.002,3330.6,3330.3,3.00272431]
[1762483664515,0.002,3330.6,3330.5,3.36065216]
[1762483664818,0.002,3330.6,3330.5,3.76615616]
[1762483664977,0.002,3330.6,3330.5,4.12425616]
[1762483665978,0.002,3330.6,3330.5,4.88628168]
[1762483666412,0.002,3330.6,3330.5,4.85625616]
[1762483666592,0.002,3330.6,3330.5,6.00652745]
[1762483666918,0.002,3330.6,3330.5,5.97650193]
[1762483668513,0.002,3331.0,3330.9,3.40769559]
[1762483668689,0.002,3331.0,3330.9,4.49779559]
[1762483668897,0.002,3331.0,3330.9,4.85589559]
[1762483669218,0.002,3331.0,3330.9,5.64171459]
[1762483670783,0.002,3331.0,3330.9,5.6717365]
[1762483672606,0.002,3331.0,3330.9,6.9314485]
[1762483672809,0.002,3331.0,3330.9,6.90142659]
[1762483673335,0.002,3331.3,3331.2,3.40742522]
[1762483673619,0.002,3331.3,3331.2,5.16848908]
[1762483673795,0.002,3331.3,3331.2,5.52658908]
[1762483674141,0.002,3331.7,3331.2,5.52658908]
[1762483674142,0.002,3331.7,3331.6,3.40706481]
[1762483674285,0.002,3331.7,3331.6,0.405504]
[1762483674488,0.4586,3331.7,3331.6,0.405504]
[1762483674717,0.9585,3331.7,3331.6,0.1496]
[1762483675589,0.4586,3331.7,3331.6,0.1496]
[1762483675793,5.21968272,3331.7,3331.6,0.1496]
[1762483675994,3.00183183,3331.3,3330.6,3.00246201]
[1762483676295,0.4999,3331.2,3330.6,0.67370971]
[1762483676514,0.4566,3330.7,3330.4,3.00256267]
[1762483676732,0.4999,3331.2,3330.2,3.00282265]
[1762483676938,0.4999,3331.2,3330.1,0.4618]
[1762483677248,3.00201134,3331.1,3330.5,3.00253424]
[1762483677621,0.4999,3331.1,3330.8,0.405504]
[1762483677812,1.444112,3331.4,3330.8,0.78684001]
[1762483678018,1.444112,3331.4,3331.0,3.0020976]
[1762483678019,0.1844,3331.4,3331.0,3.0020976]
[1762483678563,0.1844,3331.4,3331.1,0.03002011]
[1762483679059,0.1844,3331.4,3331.2,3.00191049]
[1762483679262,0.002,3331.7,3331.2,3.00191049]
[1762483679263,0.002,3331.7,3331.3,0.03001831]
[1762483679558,0.1844,3331.6,3331.3,0.03001831]
[1762483679746,0.1864,3331.6,3331.3,0.03001831]
[1762483679956,0.002,3331.6,3331.3,0.30319288]
[1762483680166,0.002,3331.6,3331.5,3.7652549]
[1762483680319,0.002,3331.6,3331.5,3.4071549]
[1762483681029,0.002,3331.6,3331.5,4.1233549]
[1762483681617,0.002,3331.6,3331.5,4.1533714]
[1762483682133,0.002,3331.9,3331.8,3.40688463]
[1762483682365,0.002,3331.9,3331.8,5.40698909]
[1762483682676,0.002,3331.9,3331.8,5.73507529]
[1762483684058,0.1844,3333.5,3332.0,3.00120048]
[1762483684279,0.1844,3333.5,3333.3,3.00001727]
[1762483684585,1.259712,3334.0,3333.4,0.3581]
[1762483684884,0.6843,3334.2,3333.6,0.405504]
[1762483685093,0.6843,3334.2,3332.3,1.259712]
[1762483685094,0.4566,3333.5,3333.0,0.405504]
[1762483685238,0.4566,3333.5,3333.2,0.405504]
[1762483685440,0.9565,3333.5,3333.4,0.405504]
[1762483685687,0.9565,3333.5,3332.9,0.731]
[1762483685993,0.4566,3333.3,3333.0,0.405504]
[1762483686289,0.4566,3333.3,3333.1,0.0300021]
[1762483686494,0.4999,3333.8,3333.2,3.14971764]
[1762483686781,0.4999,3333.8,3333.4,0.405504]
[1762483686943,0.4999,3333.8,3333.2,0.405504]
[1762483687144,0.1844,3334.2,3333.6,0.405504]
[1762483687452,0.4999,3334.1,3333.5,2.99984715]
[1762483687778,0.4999,3334.1,3333.6,2.99975553]
[1762483688367,0.4999,3334.1,3333.6,0.405504]
[1762483688555,0.4999,3334.1,3333.6,3.40525676]
[1762483688758,0.4999,3334.1,3333.6,2.99975276]
[1762483688978,0.4566,3333.7,3333.6,0.405504]
[1762483689180,0.4566,3333.7,3332.2,1.259712]
[1762483689393,0.4566,3333.6,3332.3,0.731]
[1762483689547,0.9565,3333.6,3333.0,3.00023818]
[1762483689741,0.9565,3333.6,3333.1,3.00017161]
[1762483690253,0.4999,3333.5,3333.3,3.00000859]
[1762483690444,0.4999,3333.5,3333.4,0.0299994]
[1762483690842,1.259712,3333.8,3333.4,0.0299994]
[1762483691082,2.99865673,3334.9,3333.4,0.0299994]
[1762483691083,6.99621495,3334.6,3333.4,0.0299994]
[1762483691281,1.259712,3334.1,3333.4,0.0299994]
[1762483691487,1.259712,3334.1,3333.4,2.99993532]
[1762483691800,0.4646,3334.1,3333.5,0.0299985]
[1762483692300,0.4646,3334.1,3333.6,0.405504]
[1762483692511,0.4646,3334.1,3333.7,0.405504]
[1762483692810,0.1844,3334.2,3333.7,0.405504]
[1762483693107,0.1844,3334.2,3333.9,3.40496813]
[1762483693512,0.1844,3334.2,3333.5,0.405504]
[1762483693677,0.1844,3334.2,3333.5,0.41883934]
[1762483694006,0.4681,3333.6,3333.4,0.405504]
[1762483694300,0.4681,3333.6,3332.7,3.73156451]
[1762483694301,1.259712,3333.5,3332.7,3.73156451]
[1762483694504,0.4681,3333.2,3332.9,0.405504]
[1762483694704,0.4681,3333.2,3332.9,3.40583944]
[1762483694906,0.4681,3333.2,3333.0,0.405504]
[1762483695064,0.4646,3333.5,3333.3,0.405504]
[1762483695387,1.259712,3333.7,3333.3,0.405504]
[1762483695587,0.4646,3333.6,3332.8,0.405504]
[1762483695768,0.4646,3333.6,3333.2,0.405504]
[1762483696180,0.4681,3333.3,3333.1,0.405504]
[1762483696502,0.4681,3333.2,3332.7,3.00056972]
[1762483696673,0.4681,3333.2,3332.9,3.40588273]
[1762483696874,0.9327,3333.2,3332.9,0.405504]
[1762483697094,0.4681,3333.0,3332.9,0.405504]
[1762483697256,0.4681,3333.0,3332.2,3.00096742]
[1762483697257,0.4681,3333.0,3332.1,0.4618]
[1762483697461,0.6558,3332.9,3332.1,0.1037]
[1762483697657,0.4681,3332.2,3331.1,0.3581]
[1762483697858,0.4681,3332.2,3330.6,3.90466336]
[1762483697859,0.4681,3332.2,3331.2,0.33602015]
[1762483698109,0.49007995,3332.1,3332.0,0.1496]
[1762483698316,3.46571041,3332.1,3332.0,0.1496]
[1762483698518,2.192412,3332.1,3330.9,0.405504]
[1762483698678,2.192412,3332.1,3330.9,0.43552591]
[1762483698679,0.4681,3332.1,3330.9,0.43552591]
[1762483698864,0.4646,3332.0,3330.8,0.1506]
[1762483699060,0.4646,3332.0,3330.8,3.5109652]
[1762483699272,0.1912,3331.9,3331.2,3.00189234]
[1762483699473,0.4681,3331.3,3330.6,0.001]
[1762483699920,0.9327,3331.3,3330.6,0.001]
[1762483700126,0.9327,3331.3,3330.6,0.406504]
[1762483700287,0.9327,3331.3,3330.8,3.00222688]
[1762483700503,0.4681,3331.3,3330.9,3.00217627]
[1762483700809,0.4681,3331.3,3330.9,0.60045481]
[1762483700981,0.9327,3331.3,3330.8,3.00225267]
[1762483701178,0.9327,3331.3,3330.7,3.00234292]
[1762483701529,0.4646,3331.2,3330.7,0.405504]
[1762483701692,0.4646,3331.2,3330.6,3.40890648]
[1762483701693,0.4646,3331.2,3330.6,0.001]
[1762483702209,3.46659902,3331.2,3330.6,0.001]
[1762483702575,0.4646,3331.2,3330.6,0.406504]
[1762483702797,0.4646,3331.2,3330.6,0.78930178]
[1762483702983,1.259712,3331.4,3330.8,3.002211]
[1762483703190,1.259712,3331.4,3330.9,0.03002191]
[1762483703807,0.4681,3331.0,3330.6,0.001]
[1762483703999,0.4681,3331.0,3330.6,0.406504]
[1762483704195,0.4681,3331.0,3330.6,0.74740867]
[1762483704399,0.6558,3331.9,3330.9,3.0021203]
[1762483704598,3.00157744,3331.6,3331.0,0.03002101]
[1762483704984,3.46617744,3331.6,3331.0,0.03002101]